[Event "Titled Tuesday Blitz July 4 Late 2023"]
[White "Andreikin, Dmitry"]
[Black "Nihal Sarin"]
[WhiteFideId "4158814"]
[BlackFideId "25092340"]
[WhiteElo "2970"]
[BlackElo "3128"]
[Result "1-0"]
[Round "6"]
[TimeControl "180+2"]
[Date "2023.07.04"]
[WhiteClock "0:00:09"]
[BlackClock "0:00:03"]
[Board "6"]

1. e4 {[%clk 0:03:00]}  e5 {[%clk 0:02:59]} 2. Nf3 {[%clk 0:03:00]}  Nc6 {[%clk 0:03:00]} 3. Bc4 {[%clk 0:02:58]}  Bc5 {[%clk 0:03:00]} 4. c3 {[%clk 0:02:56]}  Nf6 {[%clk 0:03:00]} 5. d3 {[%clk 0:02:57]}  O-O {[%clk 0:03:00]} 6. Nbd2 {[%clk 0:02:55]}  d6 {[%clk 0:03:00]} 7. a4 {[%clk 0:02:54]}  a5 {[%clk 0:02:57]} 8. O-O {[%clk 0:02:53]}  h6 {[%clk 0:02:57]} 9. Re1 {[%clk 0:02:52]}  Be6 {[%clk 0:02:55]} 10. h3 {[%clk 0:02:46]}  Ba7 {[%clk 0:02:39]} 11. Bxe6 {[%clk 0:02:42]}  fxe6 {[%clk 0:02:40]} 12. Qb3 {[%clk 0:02:37]}  Qd7 {[%clk 0:02:39]} 13. Nf1 {[%clk 0:02:31]}  Nh5 {[%clk 0:02:37]} 14. N1h2 {[%clk 0:02:30]}  Bb6 {[%clk 0:02:34]} 15. Be3 {[%clk 0:02:26]}  Bxe3 {[%clk 0:02:34]} 16. Rxe3 {[%clk 0:02:27]}  Nf4 {[%clk 0:02:34]} 17. Rd1 {[%clk 0:02:23]}  Kh8 {[%clk 0:02:24]} 18. h4 {[%clk 0:02:21]}  b6 {[%clk 0:02:20]} 19. g3 {[%clk 0:02:20]}  Nh5 {[%clk 0:02:20]} 20. Kg2 {[%clk 0:02:19]}  Rf6 {[%clk 0:02:19]} 21. Qb5 {[%clk 0:02:15]}  Rf7 {[%clk 0:01:55]} 22. d4 {[%clk 0:02:05]}  exd4 {[%clk 0:01:56]} 23. cxd4 {[%clk 0:01:46]}  Nf6 {[%clk 0:01:55]} 24. Rc1 {[%clk 0:01:23]}  Nb4 {[%clk 0:01:53]} 25. Qxd7 {[%clk 0:01:16]}  Rxd7 {[%clk 0:01:54]} 26. e5 {[%clk 0:01:16]}  Nfd5 {[%clk 0:01:39]} 27. Re2 {[%clk 0:01:16]}  Re8 {[%clk 0:01:38]} 28. Ng4 {[%clk 0:01:15]}  Kg8 {[%clk 0:01:34]} 29. h5 {[%clk 0:01:14]}  Kf7 {[%clk 0:01:29]} 30. Nh4 {[%clk 0:01:11]}  Nd3 {[%clk 0:01:05]} 31. Rd1 {[%clk 0:01:08]}  N3b4 {[%clk 0:01:06]} 32. Ng6 {[%clk 0:01:03]}  Ne7 {[%clk 0:01:06]} 33. exd6 {[%clk 0:00:59]}  Rxd6 {[%clk 0:01:02]} 34. N4e5+ {[%clk 0:00:52]}  Kg8 {[%clk 0:00:47]} 35. Nc4 {[%clk 0:00:51]}  Rdd8 {[%clk 0:00:48]} 36. Rxe6 {[%clk 0:00:49]}  Nxg6 {[%clk 0:00:46]} 37. Rxe8+ {[%clk 0:00:48]}  Rxe8 {[%clk 0:00:47]} 38. hxg6 {[%clk 0:00:48]}  Re6 {[%clk 0:00:21]} 39. Ne5 {[%clk 0:00:48]}  Kf8 {[%clk 0:00:21]} 40. Rc1 {[%clk 0:00:37]}  c5 {[%clk 0:00:18]} 41. f4 {[%clk 0:00:37]}  cxd4 {[%clk 0:00:08]} 42. Rc8+ {[%clk 0:00:22]}  Re8 {[%clk 0:00:07]} 43. Nd7+ {[%clk 0:00:22]}  Ke7 {[%clk 0:00:08]} 44. Rxe8+ {[%clk 0:00:23]}  Kxe8 {[%clk 0:00:09]} 45. Nxb6 {[%clk 0:00:24]}  Ke7 {[%clk 0:00:04]} 46. Kf3 {[%clk 0:00:19]}  Kf6 {[%clk 0:00:04]} 47. Nc4 {[%clk 0:00:17]}  Nc6 {[%clk 0:00:05]} 48. Ke4 {[%clk 0:00:17]}  Kxg6 {[%clk 0:00:05]} 49. Kd5 {[%clk 0:00:17]}  Ne7+ {[%clk 0:00:06]} 50. Ke4 {[%clk 0:00:11]}  Nc6 {[%clk 0:00:06]} 51. Ne5+ {[%clk 0:00:08]}  Nxe5 {[%clk 0:00:07]} 52. fxe5 {[%clk 0:00:09]}  Kf7 {[%clk 0:00:06]} 53. b4 {[%clk 0:00:08]}  axb4 {[%clk 0:00:05]} 54. a5 {[%clk 0:00:09]}  b3 {[%clk 0:00:06]} 55. Kd3 {[%clk 0:00:09]}  h5 {[%clk 0:00:03]} 56. a6 {[%clk 0:00:09]} 1-0


[Site "https://www.chess.com"]

[Event "Titled Tuesday Blitz July 4 Late 2023"]
[White "Hambleton, Aman"]
[Black "Deac, Bogdan-Daniel"]
[WhiteFideId "2606577"]
[BlackFideId "1226380"]
[WhiteElo "2800"]
[BlackElo "2990"]
[Result "0-1"]
[Round "6"]
[TimeControl "180+2"]
[Date "2023.07.04"]
[WhiteClock "0:00:00"]
[BlackClock "0:02:24"]
[Board "11"]

1. d4 {[%clk 0:03:00]}  b5 {[%clk 0:02:59]} 2. e4 {[%clk 0:02:41]}  Bb7 {[%clk 0:02:59]} 3. Bxb5 {[%clk 0:02:36]}  Bxe4 {[%clk 0:02:59]} 4. Nf3 {[%clk 0:02:37]}  c6 {[%clk 0:02:59]} 5. Be2 {[%clk 0:01:50]}  e6 {[%clk 0:02:58]} 6. O-O {[%clk 0:01:44]}  Nf6 {[%clk 0:02:55]} 7. c4 {[%clk 0:01:30]}  Bxf3 {[%clk 0:02:53]} 8. Bxf3 {[%clk 0:01:30]}  d5 {[%clk 0:02:53]} 9. Qc2 {[%clk 0:01:04]}  Be7 {[%clk 0:02:51]} 10. Nc3 {[%clk 0:00:51]}  O-O {[%clk 0:02:50]} 11. Na4 {[%clk 0:00:45]}  Nbd7 {[%clk 0:02:48]} 12. Be3 {[%clk 0:00:35]}  Nb6 {[%clk 0:02:46]} 13. c5 {[%clk 0:00:19]}  Nxa4 {[%clk 0:02:41]} 14. Qxa4 {[%clk 0:00:19]}  Qd7 {[%clk 0:02:41]} 15. Qa6 {[%clk 0:00:11]}  Rfb8 {[%clk 0:02:38]} 16. Rfb1 {[%clk 0:00:11]}  Ne8 {[%clk 0:02:33]} 17. Bf4 {[%clk 0:00:09]}  Nc7 {[%clk 0:02:30]} 18. Bxc7 {[%clk 0:00:04]}  Qxc7 {[%clk 0:02:30]} 19. b4 {[%clk 0:00:02]}  Bf6 {[%clk 0:02:28]} 20. Qd3 {[%clk 0:00:00]}  Qf4 {[%clk 0:02:24]} 0-1


[Site "https://www.chess.com"]

[Event "Titled Tuesday Blitz July 4 Late 2023"]
[White "Fernandez Guillen, Ernesto J."]
[Black "Makarian, Rudik"]
[WhiteFideId "3512428"]
[BlackFideId "44105681"]
[WhiteElo "2737"]
[BlackElo "2953"]
[Result "1-0"]
[Round "6"]
[TimeControl "180+2"]
[Date "2023.07.04"]
[WhiteClock "0:00:07"]
[BlackClock "0:00:06"]
[Board "14"]

1. e4 {[%clk 0:03:00]}  c5 {[%clk 0:03:00]} 2. Nf3 {[%clk 0:03:00]}  Nc6 {[%clk 0:03:00]} 3. Nc3 {[%clk 0:03:01]}  Nf6 {[%clk 0:03:01]} 4. e5 {[%clk 0:03:00]}  Ng4 {[%clk 0:03:00]} 5. Qe2 {[%clk 0:02:47]}  d6 {[%clk 0:02:28]} 6. exd6 {[%clk 0:02:30]}  e6 {[%clk 0:02:28]} 7. Ne4 {[%clk 0:02:04]}  Bxd6 {[%clk 0:02:28]} 8. h3 {[%clk 0:01:57]}  Nf6 {[%clk 0:02:28]} 9. Nxf6+ {[%clk 0:01:53]}  Qxf6 {[%clk 0:02:26]} 10. c3 {[%clk 0:01:54]}  O-O {[%clk 0:02:25]} 11. g3 {[%clk 0:01:49]}  e5 {[%clk 0:02:19]} 12. d3 {[%clk 0:01:45]}  Bf5 {[%clk 0:02:07]} 13. Ng5 {[%clk 0:01:40]}  Rad8 {[%clk 0:01:36]} 14. Bg2 {[%clk 0:01:33]}  Be7 {[%clk 0:01:27]} 15. Ne4 {[%clk 0:01:30]}  Qe6 {[%clk 0:01:27]} 16. g4 {[%clk 0:01:26]}  Bg6 {[%clk 0:01:27]} 17. h4 {[%clk 0:01:24]}  f5 {[%clk 0:01:05]} 18. Ng5 {[%clk 0:01:23]}  Qd6 {[%clk 0:00:32]} 19. h5 {[%clk 0:01:19]}  Be8 {[%clk 0:00:31]} 20. gxf5 {[%clk 0:01:16]}  Rxf5 {[%clk 0:00:31]} 21. Qg4 {[%clk 0:01:05]}  Bd7 {[%clk 0:00:24]} 22. Qc4+ {[%clk 0:00:57]}  Kh8 {[%clk 0:00:20]} 23. Nf7+ {[%clk 0:00:57]}  Rxf7 {[%clk 0:00:20]} 24. Qxf7 {[%clk 0:00:58]}  Be6 {[%clk 0:00:12]} 25. Qf3 {[%clk 0:00:57]}  e4 {[%clk 0:00:10]} 26. Qxe4 {[%clk 0:00:54]}  Ne5 {[%clk 0:00:10]} 27. O-O {[%clk 0:00:46]}  Nxd3 {[%clk 0:00:09]} 28. Be3 {[%clk 0:00:45]}  Bf6 {[%clk 0:00:06]} 29. Rad1 {[%clk 0:00:44]}  c4 {[%clk 0:00:07]} 30. b3 {[%clk 0:00:40]}  b5 {[%clk 0:00:07]} 31. bxc4 {[%clk 0:00:36]}  bxc4 {[%clk 0:00:08]} 32. Bd4 {[%clk 0:00:29]}  Bxd4 {[%clk 0:00:08]} 33. Qxd4 {[%clk 0:00:28]}  Qxd4 {[%clk 0:00:08]} 34. cxd4 {[%clk 0:00:29]}  Rxd4 {[%clk 0:00:07]} 35. Rfe1 {[%clk 0:00:29]}  Rd6 {[%clk 0:00:04]} 36. Be4 {[%clk 0:00:23]}  Bf7 {[%clk 0:00:02]} 37. Bxd3 {[%clk 0:00:21]}  cxd3 {[%clk 0:00:03]} 38. Re3 {[%clk 0:00:17]}  h6 {[%clk 0:00:03]} 39. Rdxd3 {[%clk 0:00:14]}  Rxd3 {[%clk 0:00:04]} 40. Rxd3 {[%clk 0:00:15]}  Bxa2 {[%clk 0:00:04]} 41. Ra3 {[%clk 0:00:15]}  Bf7 {[%clk 0:00:05]} 42. Ra5 {[%clk 0:00:15]}  Kh7 {[%clk 0:00:05]} 43. Kh2 {[%clk 0:00:16]}  a6 {[%clk 0:00:05]} 44. Kg3 {[%clk 0:00:16]}  Be8 {[%clk 0:00:05]} 45. Kh4 {[%clk 0:00:15]}  Bb5 {[%clk 0:00:06]} 46. f4 {[%clk 0:00:14]}  Kg8 {[%clk 0:00:06]} 47. Ra3 {[%clk 0:00:15]}  Kf7 {[%clk 0:00:06]} 48. Re3 {[%clk 0:00:14]}  Kf6 {[%clk 0:00:06]} 49. Re5 {[%clk 0:00:14]}  Bd7 {[%clk 0:00:04]} 50. Kg3 {[%clk 0:00:14]}  Bb5 {[%clk 0:00:04]} 51. Kf2 {[%clk 0:00:14]}  Bd7 {[%clk 0:00:05]} 52. Ke3 {[%clk 0:00:15]}  Bc6 {[%clk 0:00:04]} 53. Kd4 {[%clk 0:00:15]}  Bd7 {[%clk 0:00:03]} 54. Kc5 {[%clk 0:00:15]}  Bh3 {[%clk 0:00:03]} 55. Kd6 {[%clk 0:00:14]}  Bg4 {[%clk 0:00:03]} 56. Ra5 {[%clk 0:00:13]}  Bh3 {[%clk 0:00:04]} 57. Kc7 {[%clk 0:00:13]}  Bg4 {[%clk 0:00:04]} 58. Kd8 {[%clk 0:00:13]}  Kf7 {[%clk 0:00:04]} 59. Kc7 {[%clk 0:00:12]}  Kf6 {[%clk 0:00:04]} 60. Kd6 {[%clk 0:00:12]}  Bf3 {[%clk 0:00:04]} 61. Re5 {[%clk 0:00:13]}  Bg4 {[%clk 0:00:04]} 62. Kd5 {[%clk 0:00:13]}  Bf3+ {[%clk 0:00:04]} 63. Kd4 {[%clk 0:00:13]}  Bg4 {[%clk 0:00:05]} 64. Ke3 {[%clk 0:00:13]}  Bd7 {[%clk 0:00:05]} 65. Ra5 {[%clk 0:00:13]}  Bb5 {[%clk 0:00:05]} 66. Ke4 {[%clk 0:00:14]}  Bc6+ {[%clk 0:00:05]} 67. Ke3 {[%clk 0:00:14]}  Bb5 {[%clk 0:00:06]} 68. Kf3 {[%clk 0:00:13]}  Bc6+ {[%clk 0:00:06]} 69. Kg4 {[%clk 0:00:13]}  Bb5 {[%clk 0:00:07]} 70. Ra2 {[%clk 0:00:13]}  Bd7+ {[%clk 0:00:07]} 71. Kg3 {[%clk 0:00:13]}  Bb5 {[%clk 0:00:08]} 72. Rd2 {[%clk 0:00:13]}  Kf7 {[%clk 0:00:07]} 73. Rd6 {[%clk 0:00:13]}  Be2 {[%clk 0:00:07]} 74. Rd5 {[%clk 0:00:14]}  Bb5 {[%clk 0:00:07]} 75. Rc5 {[%clk 0:00:13]}  Kf6 {[%clk 0:00:07]} 76. Kf3 {[%clk 0:00:13]}  Kf7 {[%clk 0:00:07]} 77. Ke4 {[%clk 0:00:14]}  Kf6 {[%clk 0:00:07]} 78. Ke3 {[%clk 0:00:12]}  Kf7 {[%clk 0:00:07]} 79. Kf3 {[%clk 0:00:13]}  Kf6 {[%clk 0:00:08]} 80. Ke4 {[%clk 0:00:13]}  Ke6 {[%clk 0:00:08]} 81. f5+ {[%clk 0:00:12]}  Kf6 {[%clk 0:00:08]} 82. Kf4 {[%clk 0:00:13]}  Be8 {[%clk 0:00:07]} 83. Ra5 {[%clk 0:00:11]}  Bxh5 {[%clk 0:00:06]} 84. Rxa6+ {[%clk 0:00:11]}  Kf7 {[%clk 0:00:07]} 85. Ke5 {[%clk 0:00:11]}  Bg4 {[%clk 0:00:07]} 86. Ra7+ {[%clk 0:00:12]}  Kg8 {[%clk 0:00:07]} 87. f6 {[%clk 0:00:12]}  gxf6+ {[%clk 0:00:07]} 88. Kxf6 {[%clk 0:00:13]}  Be2 {[%clk 0:00:04]} 89. Rg7+ {[%clk 0:00:14]}  Kh8 {[%clk 0:00:05]} 90. Rd7 {[%clk 0:00:14]}  Bc4 {[%clk 0:00:04]} 91. Kg6 {[%clk 0:00:13]}  h5 {[%clk 0:00:04]} 92. Rd8+ {[%clk 0:00:09]}  Bg8 {[%clk 0:00:05]} 93. Rd4 {[%clk 0:00:07]}  Bb3 {[%clk 0:00:05]} 94. Rd7 {[%clk 0:00:04]}  h4 {[%clk 0:00:05]} 95. Rh7+ {[%clk 0:00:04]}  Kg8 {[%clk 0:00:06]} 96. Rxh4 {[%clk 0:00:04]}  Bc2+ {[%clk 0:00:07]} 97. Kf6 {[%clk 0:00:05]}  Bb3 {[%clk 0:00:07]} 98. Rb4 {[%clk 0:00:05]}  Ba2 {[%clk 0:00:08]} 99. Rg4+ {[%clk 0:00:05]}  Kh8 {[%clk 0:00:08]} 100. Kg6 {[%clk 0:00:05]}  Bb1+ {[%clk 0:00:08]} 101. Kh6 {[%clk 0:00:05]}  Ba2 {[%clk 0:00:08]} 102. Rg7 {[%clk 0:00:05]}  Bd5 {[%clk 0:00:07]} 103. Kg6 {[%clk 0:00:06]}  Be4+ {[%clk 0:00:07]} 104. Kh6 {[%clk 0:00:06]}  Bd5 {[%clk 0:00:08]} 105. Re7 {[%clk 0:00:07]}  Bc4 {[%clk 0:00:08]} 106. Re8+ {[%clk 0:00:07]}  Bg8 {[%clk 0:00:08]} 107. Re3 {[%clk 0:00:08]}  Bc4 {[%clk 0:00:08]} 108. Kg6 {[%clk 0:00:09]}  Bd5 {[%clk 0:00:07]} 109. Rh3+ {[%clk 0:00:08]}  Kg8 {[%clk 0:00:08]} 110. Rh4 {[%clk 0:00:09]}  Bb3 {[%clk 0:00:08]} 111. Rh2 {[%clk 0:00:07]}  Bc4 {[%clk 0:00:07]} 112. Rd2 {[%clk 0:00:07]}  Bb3 {[%clk 0:00:06]} 113. Rd8# {[%clk 0:00:07]} 1-0


[Site "https://www.chess.com"]

[Event "Titled Tuesday Blitz July 4 Late 2023"]
[White "Ashraf, Artin"]
[Black "Oparin, Grigoriy"]
[WhiteFideId "22514805"]
[BlackFideId "24125890"]
[WhiteElo "2723"]
[BlackElo "2952"]
[Result "1-0"]
[Round "6"]
[TimeControl "180+2"]
[Date "2023.07.04"]
[WhiteClock "0:00:03"]
[BlackClock "0:00:10"]
[Board "15"]

1. Nf3 {[%clk 0:03:00]}  c5 {[%clk 0:03:00]} 2. e3 {[%clk 0:02:57]}  Nf6 {[%clk 0:02:59]} 3. c4 {[%clk 0:02:54]}  e6 {[%clk 0:02:59]} 4. Nc3 {[%clk 0:02:53]}  Nc6 {[%clk 0:02:59]} 5. d4 {[%clk 0:02:53]}  d5 {[%clk 0:02:59]} 6. a3 {[%clk 0:02:50]}  dxc4 {[%clk 0:02:55]} 7. Bxc4 {[%clk 0:02:49]}  a6 {[%clk 0:02:56]} 8. dxc5 {[%clk 0:02:30]}  Qxd1+ {[%clk 0:02:54]} 9. Kxd1 {[%clk 0:02:31]}  Bxc5 {[%clk 0:02:55]} 10. b4 {[%clk 0:02:31]}  Ba7 {[%clk 0:02:53]} 11. Bb2 {[%clk 0:02:29]}  O-O {[%clk 0:02:52]} 12. Ke2 {[%clk 0:02:26]}  b5 {[%clk 0:02:51]} 13. Bd3 {[%clk 0:02:17]}  Bb7 {[%clk 0:02:50]} 14. Ne4 {[%clk 0:02:16]}  Nxe4 {[%clk 0:02:41]} 15. Bxe4 {[%clk 0:02:16]}  Nd4+ {[%clk 0:02:40]} 16. Bxd4 {[%clk 0:02:15]}  Bxe4 {[%clk 0:02:40]} 17. Bxa7 {[%clk 0:02:15]}  Rxa7 {[%clk 0:02:41]} 18. Rac1 {[%clk 0:02:02]}  a5 {[%clk 0:02:41]} 19. Rhd1 {[%clk 0:01:57]}  axb4 {[%clk 0:02:38]} 20. axb4 {[%clk 0:01:58]}  h6 {[%clk 0:02:33]} 21. Rd4 {[%clk 0:01:52]}  Ra2+ {[%clk 0:02:32]} 22. Rd2 {[%clk 0:01:48]}  Rfa8 {[%clk 0:02:29]} 23. Rc5 {[%clk 0:01:44]}  Bd5 {[%clk 0:02:23]} 24. Rxa2 {[%clk 0:01:09]}  Rxa2+ {[%clk 0:02:23]} 25. Ke1 {[%clk 0:01:09]}  Bc4 {[%clk 0:02:17]} 26. Nd4 {[%clk 0:01:08]}  Bd3 {[%clk 0:01:53]} 27. Rc3 {[%clk 0:00:32]}  Bc4 {[%clk 0:01:52]} 28. Rc2 {[%clk 0:00:29]}  Ra1+ {[%clk 0:01:44]} 29. Kd2 {[%clk 0:00:28]}  e5 {[%clk 0:01:39]} 30. Nc6 {[%clk 0:00:28]}  f6 {[%clk 0:01:38]} 31. Na5 {[%clk 0:00:25]}  Bd5 {[%clk 0:01:33]} 32. f3 {[%clk 0:00:23]}  Rg1 {[%clk 0:01:32]} 33. Kd3 {[%clk 0:00:18]}  Rd1+ {[%clk 0:01:27]} 34. Ke2 {[%clk 0:00:16]}  Rb1 {[%clk 0:01:27]} 35. e4 {[%clk 0:00:12]}  Bf7 {[%clk 0:01:28]} 36. Nc6 {[%clk 0:00:07]}  Bc4+ {[%clk 0:01:27]} 37. Kf2 {[%clk 0:00:08]}  h5 {[%clk 0:01:26]} 38. h4 {[%clk 0:00:07]}  Kf7 {[%clk 0:01:26]} 39. Rd2 {[%clk 0:00:08]}  Be6 {[%clk 0:01:08]} 40. Nd8+ {[%clk 0:00:07]}  Ke7 {[%clk 0:01:08]} 41. Nc6+ {[%clk 0:00:07]}  Ke8 {[%clk 0:01:07]} 42. Rd8+ {[%clk 0:00:07]}  Kf7 {[%clk 0:01:07]} 43. Rb8 {[%clk 0:00:08]}  Bc4 {[%clk 0:01:03]} 44. Rb7+ {[%clk 0:00:08]}  Kf8 {[%clk 0:00:54]} 45. Rb8+ {[%clk 0:00:08]}  Kf7 {[%clk 0:00:54]} 46. Rb7+ {[%clk 0:00:09]}  Kg8 {[%clk 0:00:51]} 47. Ne7+ {[%clk 0:00:09]}  Kf8 {[%clk 0:00:51]} 48. Ng6+ {[%clk 0:00:07]}  Ke8 {[%clk 0:00:51]} 49. Re7+ {[%clk 0:00:05]}  Kd8 {[%clk 0:00:51]} 50. Rxg7 {[%clk 0:00:06]}  Rxb4 {[%clk 0:00:51]} 51. g4 {[%clk 0:00:07]}  Rb2+ {[%clk 0:00:51]} 52. Kg3 {[%clk 0:00:07]}  hxg4 {[%clk 0:00:50]} 53. h5 {[%clk 0:00:05]}  gxf3 {[%clk 0:00:33]} 54. h6 {[%clk 0:00:02]}  Rg2+ {[%clk 0:00:24]} 55. Kxf3 {[%clk 0:00:02]}  Rh2 {[%clk 0:00:25]} 56. h7 {[%clk 0:00:02]}  b4 {[%clk 0:00:21]} 57. h8=Q+ {[%clk 0:00:02]}  Rxh8 {[%clk 0:00:21]} 58. Nxh8 {[%clk 0:00:03]}  b3 {[%clk 0:00:22]} 59. Rg2 {[%clk 0:00:02]}  Ke7 {[%clk 0:00:21]} 60. Ng6+ {[%clk 0:00:02]}  Kd6 {[%clk 0:00:21]} 61. Nh4 {[%clk 0:00:03]}  Kc5 {[%clk 0:00:21]} 62. Ke3 {[%clk 0:00:03]}  Kb4 {[%clk 0:00:21]} 63. Kd2 {[%clk 0:00:03]}  Bb5 {[%clk 0:00:15]} 64. Kc1 {[%clk 0:00:03]}  Bd3 {[%clk 0:00:14]} 65. Kb2 {[%clk 0:00:03]}  Kc4 {[%clk 0:00:14]} 66. Rf2 {[%clk 0:00:03]}  Bxe4 {[%clk 0:00:14]} 67. Rxf6 {[%clk 0:00:04]}  Bc2 {[%clk 0:00:15]} 68. Nf3 {[%clk 0:00:03]}  e4 {[%clk 0:00:15]} 69. Ne1 {[%clk 0:00:03]}  Bd1 {[%clk 0:00:14]} 70. Rc6+ {[%clk 0:00:02]}  Kd5 {[%clk 0:00:15]} 71. Rc8 {[%clk 0:00:02]}  Ke5 {[%clk 0:00:15]} 72. Rd8 {[%clk 0:00:02]}  Bg4 {[%clk 0:00:14]} 73. Kxb3 {[%clk 0:00:02]}  e3 {[%clk 0:00:13]} 74. Kc3 {[%clk 0:00:03]}  Kf4 {[%clk 0:00:11]} 75. Nd3+ {[%clk 0:00:02]}  Ke4 {[%clk 0:00:10]} 76. Re8+ {[%clk 0:00:02]}  Kf3 {[%clk 0:00:09]} 77. Ne5+ {[%clk 0:00:02]}  Kf4 {[%clk 0:00:10]} 78. Nxg4 {[%clk 0:00:02]}  e2 {[%clk 0:00:10]} 79. Rxe2 {[%clk 0:00:03]} 1-0


[Site "https://www.chess.com"]

[Event "Titled Tuesday Blitz July 4 Late 2023"]
[White "Keymer, Vincent"]
[Black "Jaracz, Pawel"]
[WhiteFideId "12940690"]
[BlackFideId "1102222"]
[WhiteElo "2946"]
[BlackElo "2716"]
[Result "1-0"]
[Round "6"]
[TimeControl "180+2"]
[Date "2023.07.04"]
[WhiteClock "0:01:02"]
[BlackClock "0:00:00"]
[Board "16"]

1. a3 {[%clk 0:03:00]}  a6 {[%clk 0:02:56]} 2. d4 {[%clk 0:02:58]}  d5 {[%clk 0:02:56]} 3. Bf4 {[%clk 0:02:55]}  Bf5 {[%clk 0:02:55]} 4. c4 {[%clk 0:02:53]}  c6 {[%clk 0:02:55]} 5. Qb3 {[%clk 0:02:52]}  b5 {[%clk 0:02:54]} 6. c5 {[%clk 0:02:43]}  Nd7 {[%clk 0:02:50]} 7. Nf3 {[%clk 0:02:43]}  f6 {[%clk 0:02:41]} 8. e3 {[%clk 0:02:37]}  e5 {[%clk 0:02:40]} 9. Bg3 {[%clk 0:02:38]}  Nh6 {[%clk 0:02:34]} 10. Nc3 {[%clk 0:02:36]}  Nf7 {[%clk 0:02:32]} 11. Be2 {[%clk 0:02:33]}  Be7 {[%clk 0:02:22]} 12. O-O {[%clk 0:02:31]}  O-O {[%clk 0:02:21]} 13. a4 {[%clk 0:02:32]}  Bg4 {[%clk 0:01:55]} 14. h3 {[%clk 0:02:24]}  Bf5 {[%clk 0:01:11]} 15. Rfd1 {[%clk 0:02:20]}  Qc8 {[%clk 0:00:53]} 16. Rac1 {[%clk 0:02:11]}  e4 {[%clk 0:00:41]} 17. Nh4 {[%clk 0:02:00]}  Bg6 {[%clk 0:00:24]} 18. axb5 {[%clk 0:01:52]}  axb5 {[%clk 0:00:24]} 19. Bg4 {[%clk 0:01:41]}  Qe8 {[%clk 0:00:21]} 20. Nxd5 {[%clk 0:01:34]}  cxd5 {[%clk 0:00:21]} 21. Qxd5 {[%clk 0:01:34]}  Rd8 {[%clk 0:00:21]} 22. Qb3 {[%clk 0:01:30]}  Kh8 {[%clk 0:00:16]} 23. c6 {[%clk 0:01:25]}  Nb6 {[%clk 0:00:16]} 24. Bc7 {[%clk 0:01:21]}  Nd5 {[%clk 0:00:16]} 25. Bxd8 {[%clk 0:01:21]}  Qxd8 {[%clk 0:00:17]} 26. Qxb5 {[%clk 0:01:16]}  Nc7 {[%clk 0:00:17]} 27. Qa5 {[%clk 0:01:12]}  Bd6 {[%clk 0:00:17]} 28. b4 {[%clk 0:01:10]}  Qe7 {[%clk 0:00:13]} 29. b5 {[%clk 0:01:03]}  Ra8 {[%clk 0:00:14]} 30. Qb6 {[%clk 0:01:03]}  Ne8 {[%clk 0:00:09]} 31. Qb7 {[%clk 0:01:02]}  Qxb7 {[%clk 0:00:05]} 32. cxb7 {[%clk 0:01:03]}  Rb8 {[%clk 0:00:04]} 33. Rc8 {[%clk 0:01:03]}  Nd8 {[%clk 0:00:04]} 34. Nxg6+ {[%clk 0:01:00]}  hxg6 {[%clk 0:00:04]} 35. Rxb8 {[%clk 0:01:01]}  Bxb8 {[%clk 0:00:04]} 36. Rc1 {[%clk 0:01:02]}  Nxb7 {[%clk 0:00:00]} 37. Rc8 {[%clk 0:01:02]} 1-0


[Site "https://www.chess.com"]

[Event "Titled Tuesday Blitz July 4 Late 2023"]
[White "Henriquez Villagra, Cristobal"]
[Black "Sebag, Marie"]
[WhiteFideId "3409350"]
[BlackFideId "617822"]
[WhiteElo "2855"]
[BlackElo "2592"]
[Result "1-0"]
[Round "6"]
[TimeControl "180+2"]
[Date "2023.07.04"]
[WhiteClock "0:00:07"]
[BlackClock "0:00:01"]
[Board "21"]

1. Nf3 {[%clk 0:02:56]}  d5 {[%clk 0:02:59]} 2. g3 {[%clk 0:02:50]}  Nf6 {[%clk 0:02:58]} 3. Bg2 {[%clk 0:02:50]}  g6 {[%clk 0:02:58]} 4. O-O {[%clk 0:02:50]}  Bg7 {[%clk 0:02:58]} 5. d4 {[%clk 0:02:47]}  O-O {[%clk 0:02:58]} 6. c3 {[%clk 0:02:48]}  c6 {[%clk 0:02:56]} 7. a4 {[%clk 0:02:47]}  Bf5 {[%clk 0:02:54]} 8. Nh4 {[%clk 0:02:38]}  Be4 {[%clk 0:02:51]} 9. f3 {[%clk 0:02:35]}  Bxb1 {[%clk 0:02:50]} 10. Rxb1 {[%clk 0:02:36]}  h6 {[%clk 0:02:49]} 11. Qd3 {[%clk 0:02:15]}  e6 {[%clk 0:02:49]} 12. Bh3 {[%clk 0:02:08]}  Qe7 {[%clk 0:02:40]} 13. e4 {[%clk 0:01:56]}  g5 {[%clk 0:02:26]} 14. e5 {[%clk 0:01:45]}  gxh4 {[%clk 0:02:23]} 15. exf6 {[%clk 0:01:45]}  Qxf6 {[%clk 0:02:21]} 16. f4 {[%clk 0:01:11]}  Nd7 {[%clk 0:02:16]} 17. Be3 {[%clk 0:01:09]}  Kh8 {[%clk 0:02:10]} 18. Kh1 {[%clk 0:01:08]}  Rg8 {[%clk 0:02:07]} 19. g4 {[%clk 0:01:08]}  Qg6 {[%clk 0:02:01]} 20. f5 {[%clk 0:01:08]}  exf5 {[%clk 0:01:53]} 21. g5 {[%clk 0:01:04]}  f4 {[%clk 0:01:34]} 22. Bf5 {[%clk 0:01:03]}  Qh5 {[%clk 0:01:33]} 23. Rxf4 {[%clk 0:00:55]}  hxg5 {[%clk 0:01:26]} 24. Bg4 {[%clk 0:00:37]}  Qg6 {[%clk 0:01:22]} 25. Bf5 {[%clk 0:00:34]}  Qh5 {[%clk 0:01:17]} 26. Rf2 {[%clk 0:00:24]}  Nf6 {[%clk 0:01:12]} 27. Rg1 {[%clk 0:00:24]}  Bh6 {[%clk 0:00:59]} 28. h3 {[%clk 0:00:24]}  Rae8 {[%clk 0:00:57]} 29. Rfg2 {[%clk 0:00:22]}  Ne4 {[%clk 0:00:55]} 30. Bf2 {[%clk 0:00:17]}  Re7 {[%clk 0:00:34]} 31. Be1 {[%clk 0:00:16]}  Rge8 {[%clk 0:00:32]} 32. Bg4 {[%clk 0:00:16]}  Qg6 {[%clk 0:00:32]} 33. Qf3 {[%clk 0:00:17]}  Nd6 {[%clk 0:00:27]} 34. Bd2 {[%clk 0:00:16]}  Ne4 {[%clk 0:00:21]} 35. Be1 {[%clk 0:00:17]}  Rf8 {[%clk 0:00:18]} 36. Bf5 {[%clk 0:00:17]}  Qg7 {[%clk 0:00:13]} 37. Bxh4 {[%clk 0:00:16]}  f6 {[%clk 0:00:12]} 38. Be1 {[%clk 0:00:15]}  Qf7 {[%clk 0:00:11]} 39. h4 {[%clk 0:00:15]}  Kg7 {[%clk 0:00:09]} 40. Rh2 {[%clk 0:00:13]}  Rh8 {[%clk 0:00:09]} 41. c4 {[%clk 0:00:10]}  Kf8 {[%clk 0:00:08]} 42. Bb4 {[%clk 0:00:10]}  c5 {[%clk 0:00:07]} 43. dxc5 {[%clk 0:00:09]}  a5 {[%clk 0:00:06]} 44. Ba3 {[%clk 0:00:09]}  Ke8 {[%clk 0:00:04]} 45. c6 {[%clk 0:00:09]}  bxc6 {[%clk 0:00:04]} 46. Bxe7 {[%clk 0:00:09]}  Qxe7 {[%clk 0:00:04]} 47. cxd5 {[%clk 0:00:08]}  cxd5 {[%clk 0:00:04]} 48. hxg5 {[%clk 0:00:08]}  fxg5 {[%clk 0:00:04]} 49. Re1 {[%clk 0:00:08]}  Bg7 {[%clk 0:00:04]} 50. Rxh8+ {[%clk 0:00:07]}  Bxh8 {[%clk 0:00:04]} 51. Bxe4 {[%clk 0:00:07]}  dxe4 {[%clk 0:00:04]} 52. Rxe4 {[%clk 0:00:08]}  Be5 {[%clk 0:00:01]} 53. Qf5 {[%clk 0:00:07]} 1-0


[Site "https://www.chess.com"]